bitfinex/quotes_BTCUSD_20241003
["timestamp","ask_amount","ask_price","bid_price","bid_amount"]
[1727974142004,0.408812,60348.0,60343.0,0.001634]
[1727974142005,0.408815,60348.0,60343.0,0.001634]
[1727974142248,0.331404,60350.0,60343.0,0.001634]
[1727974142486,0.165698,60351.0,60345.0,0.331426]
[1727974142684,0.24858514,60356.0,60346.0,0.33142]
[1727974142685,0.165692,60353.0,60346.0,0.33142]
[1727974142912,0.165693,60353.0,60348.0,0.165704]
[1727974143123,0.165687,60355.0,60349.0,0.165702]
[1727974143364,0.338345,60360.0,60348.0,0.331411]
[1727974143365,0.331353,60359.0,60348.0,0.331411]
[1727974143593,0.57989414,60367.0,60353.0,0.331381]
[1727974143850,0.001634,60368.0,60354.0,0.41177185]
[1727974144057,0.001634,60368.0,60363.0,0.165662]
[1727974144058,0.24858514,60367.0,60363.0,0.165662]
[1727974144282,0.24858514,60367.0,60358.0,0.331355]
[1727974144283,0.001634,60368.0,60360.0,0.19010797]
[1727974144515,0.02760244,60368.0,60362.0,0.331332]
[1727974144769,0.02760244,60368.0,60366.0,0.165654]
[1727974145227,0.001634,60368.0,60366.0,0.165655]
[1727974145467,0.001634,60368.0,60364.0,0.16566]
[1727974145694,0.001634,60368.0,60361.0,0.16318671]
[1727974145970,0.001634,60368.0,60364.0,0.16566]
[1727974146195,0.001634,60368.0,60363.0,0.331328]
[1727974146425,0.001634,60368.0,60364.0,0.33132]
[1727974146662,0.001634,60368.0,60365.0,0.331314]
[1727974146940,0.001634,60368.0,60367.0,0.165653]
[1727974147400,0.001634,60368.0,60367.0,0.32883971]
[1727974147835,0.001634,60368.0,60367.0,0.165653]
[1727974148302,0.001634,60368.0,60365.0,0.005]
[1727974148592,0.001634,60368.0,60365.0,0.170657]
[1727974148823,0.001634,60368.0,60365.0,0.501971]
[1727974149050,0.001634,60368.0,60365.0,0.170658]
[1727974149271,0.001634,60368.0,60365.0,0.005]
[1727974149504,0.331345,60360.0,60355.0,0.24858514]
[1727974149717,0.167284,60368.0,60367.0,0.01]
[1727974149963,0.498588,60368.0,60367.0,0.01]
[1727974150188,0.498588,60368.0,60355.0,0.41427014]
[1727974150189,0.165675,60359.0,60355.0,0.41427014]
[1727974150397,0.332938,60368.0,60355.0,0.24858514]
[1727974150398,0.165683,60356.0,60355.0,0.24858514]
[1727974150839,0.331377,60355.0,60347.0,0.41592214]
[1727974151075,0.331357,60358.0,60347.0,0.41340385]
[1727974151292,0.16569,60354.0,60347.0,0.41340385]
[1727974151510,0.165682,60357.0,60349.0,0.331401]
[1727974151721,0.165682,60357.0,60351.0,0.165696]
[1727974151722,0.165687,60355.0,60351.0,0.165696]
[1727974151935,0.331354,60359.0,60352.0,0.165694]
[1727974152158,0.0754,60364.0,60347.0,0.41340385]
[1727974152159,0.165688,60355.0,60349.0,0.331405]
[1727974152440,0.165688,60355.0,60351.0,0.165696]
[1727974152656,0.0259706,60358.0,60347.0,0.001632]
[1727974152871,0.165705,60348.0,60347.0,0.002632]
[1727974153350,0.165705,60348.0,60347.0,0.001632]
[1727974153588,0.248705,60348.0,60347.0,0.001632]
[1727974153818,0.27467961,60348.0,60347.0,0.001632]
[1727974154481,0.27467961,60348.0,60347.0,0.005632]
[1727974155417,0.38743917,60348.0,60347.0,0.005632]
[1727974155635,0.27467961,60348.0,60347.0,0.005632]
[1727974155849,0.27467961,60348.0,60347.0,0.001632]
[1727974156083,0.27467961,60348.0,60347.0,0.002632]
[1727974156084,0.252705,60348.0,60347.0,0.002632]
[1727974156597,0.165705,60348.0,60347.0,0.001632]
[1727974156807,0.169705,60348.0,60347.0,0.002632]
[1727974157303,0.54306427,60348.0,60347.0,0.002632]
[1727974157518,0.53906427,60348.0,60347.0,0.001632]
[1727974157753,0.54306427,60348.0,60347.0,0.001632]
[1727974157968,0.45981297,60348.0,60347.0,0.001632]
[1727974159101,0.48579342,60348.0,60347.0,0.001632]
[1727974160300,0.45981297,60348.0,60347.0,0.001632]
[1727974163516,0.48579253,60348.0,60347.0,0.001632]
[1727974163965,0.29568456,60348.0,60347.0,0.001632]
[1727974164873,0.19568456,60348.0,60347.0,0.001632]
[1727974165322,0.165705,60348.0,60347.0,0.001632]
[1727974165551,0.0806,60363.0,60347.0,0.001632]
[1727974165784,0.004,60348.0,60347.0,0.16734]
[1727974166250,0.1657,60350.0,60347.0,0.001632]
[1727974166464,0.165698,60351.0,60347.0,0.167338]
[1727974166690,0.165704,60349.0,60347.0,0.002632]
[1727974166909,0.165705,60348.0,60347.0,0.002632]
[1727974167132,0.165705,60348.0,60347.0,0.001632]
[1727974167342,0.165705,60348.0,60347.0,0.003632]
[1727974168572,0.19168232,60348.0,60347.0,0.003632]
[1727974168782,0.19168232,60348.0,60347.0,0.001632]
[1727974169025,0.29168232,60348.0,60347.0,0.002632]
[1727974169266,0.37048232,60348.0,60347.0,0.002632]
[1727974169501,0.37048232,60348.0,60343.0,0.001634]
[1727974169502,0.188716,60344.0,60343.0,0.001634]
[1727974169718,0.45584297,60337.0,60336.0,0.001634]
[1727974169934,0.48084297,60337.0,60336.0,0.001634]
[1727974170147,0.48084297,60337.0,60309.0,0.0819]
[1727974170148,0.31510797,60337.0,60309.0,0.0819]
[1727974170358,0.45585397,60333.0,60309.0,0.413521]
[1727974170573,0.45585397,60333.0,60310.0,0.165807]
[1727974170789,0.165766,60326.0,60309.0,0.0819]
[1727974171015,0.35587397,60326.0,60308.0,0.165814]
[1727974171237,0.35587397,60326.0,60307.0,0.000817]
[1727974171238,0.45587397,60326.0,60325.0,0.001634]
[1727974171965,0.57454587,60326.0,60325.0,0.001634]
[1727974172184,0.165804,60312.0,60307.0,0.000817]
[1727974172884,0.165815,60308.0,60307.0,0.000817]
[1727974173301,0.02599256,60312.0,60307.0,0.000817]
[1727974173514,0.02999256,60312.0,60307.0,0.000817]
[1727974173716,0.165807,60311.0,60307.0,0.166634]
[1727974173929,0.02999256,60312.0,60309.0,0.331624]
[1727974174140,0.02999256,60312.0,60307.0,0.000817]
[1727974174362,0.165815,60308.0,60307.0,0.000817]
[1727974175209,0.166815,60308.0,60307.0,0.000817]
[1727974175716,0.165815,60308.0,60307.0,0.000817]
[1727974176156,0.165813,60309.0,60307.0,0.000817]
[1727974176632,0.331601,60314.0,60307.0,0.000817]
[1727974176842,0.24858514,60320.0,60307.0,0.000817]
[1727974176843,0.165815,60308.0,60307.0,0.000817]
[1727974177057,0.16581,60310.0,60307.0,0.000817]
[1727974177751,0.165815,60308.0,60307.0,0.000817]
[1727974177968,0.165811,60310.0,60307.0,0.000817]
[1727974178188,0.331606,60313.0,60307.0,0.003817]
[1727974178414,0.165815,60308.0,60307.0,0.003817]
[1727974178629,0.165812,60310.0,60307.0,0.003817]
[1727974178873,0.331613,60312.0,60307.0,0.003817]
[1727974179318,0.165815,60308.0,60307.0,0.000817]
[1727974179528,0.001,60308.0,60307.0,0.008817]
[1727974180208,0.001,60308.0,60307.0,0.174635]
[1727974180452,0.166815,60308.0,60307.0,0.008817]
[1727974180929,0.165815,60308.0,60307.0,0.000817]
[1727974181396,0.165815,60308.0,60307.0,0.004817]
[1727974181885,0.165815,60308.0,60307.0,0.000817]
[1727974182111,0.165815,60308.0,60307.0,0.008817]
[1727974182112,0.166815,60308.0,60307.0,0.008817]
[1727974182621,0.2498204,60308.0,60307.0,0.008817]
[1727974183784,0.27581498,60308.0,60307.0,0.008817]
[1727974184081,0.27481498,60308.0,60307.0,0.000817]
[1727974184341,0.37481498,60308.0,60307.0,0.003817]
[1727974184566,0.39981498,60308.0,60307.0,1e-06]
[1727974184825,0.265851,60295.0,60286.0,0.25021714]
[1727974185039,0.55163087,60295.0,60286.0,0.25021714]
[1727974185298,0.265851,60295.0,60286.0,0.25021714]
[1727974185528,0.165873,60287.0,60286.0,0.25021714]
[1727974186182,0.165873,60287.0,60286.0,0.001632]
[1727974186414,0.331724,60291.0,60286.0,0.001632]
[1727974186842,0.006,60295.0,60286.0,0.001632]
[1727974186843,0.165859,60292.0,60286.0,0.001632]
[1727974187126,0.337704,60295.0,60286.0,0.001632]
[1727974187371,0.331708,60294.0,60287.0,0.165872]
[1727974187608,0.004,60287.0,60286.0,0.001632]
[1727974188071,0.165865,60290.0,60286.0,0.001632]
[1727974188316,0.165865,60290.0,60286.0,0.167506]
[1727974188503,0.165865,60290.0,60286.0,0.001632]
[1727974188504,0.165873,60287.0,60286.0,0.001632]
[1727974188974,0.331737,60289.0,60286.0,0.001632]
[1727974189201,0.165873,60287.0,60286.0,0.001632]
[1727974189427,0.165873,60287.0,60286.0,0.005632]
[1727974189884,0.001,60290.0,60286.0,0.171507]
[1727974190112,0.166867,60290.0,60286.0,0.005632]
[1727974190363,0.001,60290.0,60286.0,0.005632]
[1727974190582,0.331702,60295.0,60286.0,0.001632]
[1727974190800,0.001,60287.0,60286.0,0.008632]
[1727974191757,0.165873,60287.0,60286.0,0.001632]
[1727974192464,0.165873,60287.0,60286.0,0.004632]
[1727974192695,0.19187395,60287.0,60286.0,0.004632]
[1727974192968,0.02600095,60287.0,60286.0,0.24661871]
[1727974193205,0.24858514,60297.0,60290.0,0.331729]
[1727974193454,0.24858514,60297.0,60289.0,0.165867]
[1727974193455,0.165855,60294.0,60289.0,0.165867]
[1727974193643,0.02600004,60295.0,60286.0,0.097432]
[1727974193644,0.165866,60290.0,60286.0,0.097432]
[1727974193863,0.331709,60294.0,60288.0,0.24858514]
[1727974194089,0.165869,60289.0,60286.0,0.094432]
[1727974194355,0.165862,60291.0,60286.0,0.260305]
[1727974194564,0.001,60287.0,60286.0,0.100432]
[1727974194834,0.166873,60287.0,60286.0,0.100432]
[1727974195041,0.165873,60287.0,60286.0,0.094432]
[1727974195322,0.165873,60287.0,60286.0,0.101432]
[1727974195570,0.25150717,60287.0,60286.0,0.101432]
[1727974195809,0.165873,60287.0,60286.0,0.001632]
[1727974196050,0.45265287,60287.0,60286.0,0.008632]
[1727974197166,0.166873,60287.0,60286.0,0.008632]
[1727974197437,0.165873,60287.0,60286.0,0.001632]
[1727974197648,0.165873,60287.0,60286.0,0.004632]
[1727974198110,0.165873,60287.0,60286.0,0.001632]
[1727974198331,0.165873,60287.0,60286.0,0.005632]
[1727974199018,0.19187577,60287.0,60286.0,0.005632]
[1727974200184,0.165873,60287.0,60286.0,0.005632]
[1727974200401,0.663468,60290.0,60286.0,0.005632]
[1727974200402,0.331742,60288.0,60286.0,0.005632]
[1727974200668,0.165873,60287.0,60286.0,0.005632]
[1727974200922,0.45165287,60287.0,60286.0,0.005632]
[1727974201169,0.47797823,60287.0,60286.0,0.005632]
[1727974201452,0.47797823,60287.0,60286.0,0.001632]
[1727974201676,0.47797823,60287.0,60286.0,0.004632]
[1727974202136,0.47797823,60287.0,60286.0,0.001632]
[1727974202371,0.47797823,60287.0,60286.0,0.005632]
[1727974203060,0.45165287,60287.0,60286.0,0.005632]
[1727974203579,0.55365287,60287.0,60286.0,0.005632]
[1727974203826,0.55165287,60287.0,60286.0,0.001632]
[1727974204060,0.55765287,60287.0,60286.0,0.002632]
[1727974204323,0.68813576,60287.0,60286.0,0.002632]
[1727974204559,0.68213576,60287.0,60286.0,0.001632]
[1727974204805,0.71014236,60287.0,60286.0,0.001632]
[1727974205064,0.68413576,60287.0,60286.0,0.001632]
[1727974205302,0.265884,60283.0,60282.0,0.001634]
[1727974205542,0.265903,60276.0,60275.0,0.001634]
[1727974205777,0.267903,60276.0,60275.0,0.001634]
[1727974206018,0.265903,60276.0,60275.0,0.001634]
[1727974206256,0.265911,60273.0,60272.0,0.000816]
[1727974206489,0.55169087,60273.0,60272.0,0.000816]
[1727974206718,0.71485346,60273.0,60272.0,0.000816]
[1727974207248,0.74086495,60273.0,60272.0,0.000816]
[1727974208142,0.74286495,60273.0,60272.0,0.000816]
[1727974209362,0.46908508,60273.0,60272.0,0.001816]
[1727974209591,0.75486495,60273.0,60272.0,0.001816]
[1727974209866,0.75486495,60273.0,60272.0,0.000816]
[1727974209867,0.74086495,60273.0,60272.0,0.000816]
[1727974210072,0.75486495,60273.0,60272.0,0.001816]
[1727974210303,0.73085346,60273.0,60272.0,0.001816]
[1727974210528,0.72885346,60273.0,60272.0,0.001816]
[1727974210748,0.279911,60273.0,60272.0,0.001816]
[1727974211470,0.265911,60273.0,60272.0,0.000816]
[1727974211660,0.279911,60273.0,60272.0,0.001816]
[1727974212194,0.265911,60273.0,60272.0,0.000816]
[1727974212740,0.56569087,60273.0,60272.0,0.001816]
[1727974212803,0.61358563,60273.0,60272.0,0.001816]
[1727974213014,0.265911,60273.0,60272.0,0.000816]
[1727974213394,0.169911,60273.0,60272.0,0.000816]
[1727974214840,0.331803,60277.0,60272.0,0.000816]
[1727974215060,0.003,60273.0,60272.0,0.000816]
[1727974215538,0.24858514,60281.0,60273.0,0.331818]
[1727974215748,0.331796,60278.0,60272.0,0.168416]
[1727974215963,0.165902,60277.0,60273.0,0.165909]
[1727974216183,0.58036814,60281.0,60276.0,0.165903]
[1727974216403,0.331772,60283.0,60272.0,0.168416]
[1727974216666,0.58025514,60301.0,60275.0,0.331811]
[1727974216667,0.02600485,60280.0,60275.0,0.331811]
[1727974216903,0.35779285,60280.0,60275.0,0.165905]
[1727974217111,0.165898,60278.0,60274.0,0.165908]
[1727974217560,0.165898,60278.0,60272.0,0.507242]
[1727974217561,0.33179,60279.0,60272.0,0.175416]
[1727974217839,0.331781,60281.0,60272.0,0.175416]
[1727974218048,0.165894,60280.0,60273.0,0.331818]
[1727974218291,0.165891,60281.0,60277.0,0.1659]
[1727974218552,0.331774,60282.0,60276.0,0.002]
[1727974218779,0.165894,60280.0,60277.0,0.165899]
[1727974219024,0.165894,60280.0,60276.0,0.167901]
[1727974219255,0.1659,60278.0,60273.0,0.24858514]
[1727974219476,0.165909,60274.0,60273.0,0.003]
[1727974220229,0.165906,60275.0,60272.0,0.091716]
[1727974220456,0.165901,60277.0,60272.0,0.091716]
[1727974220692,0.165898,60278.0,60275.0,0.165906]
[1727974220901,0.25022114,60281.0,60272.0,0.091716]
[1727974220902,0.41611214,60281.0,60277.0,0.1659]
[1727974221131,0.02600548,60279.0,60275.0,0.165904]
[1727974221394,0.165899,60278.0,60275.0,0.165905]
[1727974221685,0.02600548,60279.0,60276.0,0.003]
[1727974221941,0.265911,60273.0,60272.0,0.000816]
[1727974223170,0.279911,60273.0,60272.0,0.001816]
[1727974224379,0.179911,60273.0,60272.0,0.001816]
[1727974224632,0.165911,60273.0,60272.0,0.000816]
[1727974224872,0.169911,60273.0,60272.0,0.000816]
[1727974225090,0.19592057,60273.0,60272.0,0.000816]
[1727974225402,0.19192057,60273.0,60272.0,0.000816]
[1727974225511,0.165911,60273.0,60272.0,0.000816]
[1727974225732,0.165911,60273.0,60272.0,0.001816]
[1727974225733,0.172911,60273.0,60272.0,0.001816]
[1727974226210,0.172911,60273.0,60272.0,0.000816]
[1727974226211,0.165911,60273.0,60272.0,0.000816]
[1727974226429,0.169911,60273.0,60272.0,0.000816]
[1727974227355,0.27812311,60273.0,60272.0,0.000816]
[1727974227586,0.27912311,60273.0,60272.0,0.000816]
[1727974228054,0.170911,60273.0,60272.0,0.000816]
[1727974228273,0.166911,60273.0,60272.0,0.000816]
[1727974228505,0.168911,60273.0,60272.0,0.000816]
[1727974228727,0.167911,60273.0,60272.0,0.000816]
[1727974229212,0.168911,60273.0,60272.0,0.000816]
[1727974229430,0.26471281,60273.0,60272.0,0.000816]
[1727974230118,0.2907228,60273.0,60272.0,0.000816]
[1727974230355,0.26471281,60273.0,60272.0,0.000816]
[1727974230809,0.26671281,60273.0,60272.0,0.000816]
[1727974231780,0.168911,60273.0,60272.0,0.000816]
[1727974233191,0.19492097,60273.0,60272.0,0.000816]
[1727974235984,0.29492097,60273.0,60272.0,0.000816]
[1727974236241,0.270911,60273.0,60272.0,0.000816]
[1727974236482,0.34419337,60273.0,60272.0,0.000816]
[1727974236723,0.52618536,60273.0,60272.0,0.000816]
[1727974236969,0.52518536,60273.0,60272.0,0.000816]
[1727974237182,0.45547553,60273.0,60272.0,0.002816]
[1727974237874,0.279911,60273.0,60272.0,0.001816]
[1727974238159,0.193911,60273.0,60272.0,0.002816]
[1727974238375,0.179911,60273.0,60272.0,0.001816]
[1727974238820,0.192911,60273.0,60272.0,0.002816]
[1727974239054,0.178911,60273.0,60272.0,0.001816]
[1727974239285,0.182911,60273.0,60272.0,0.001816]
[1727974239523,0.20892098,60273.0,60272.0,0.001816]
[1727974239740,0.21192098,60273.0,60272.0,0.001816]
[1727974241182,0.19892098,60273.0,60272.0,0.000816]
[1727974241419,0.48770085,60273.0,60272.0,0.000816]
[1727974241926,0.53653483,60273.0,60272.0,0.000816]
[1727974242169,0.52653483,60273.0,60272.0,0.000816]
[1727974242410,0.48270085,60273.0,60272.0,0.000816]
[1727974242647,0.34574684,60273.0,60272.0,0.000816]
[1727974243122,0.34374684,60273.0,60272.0,0.000816]
[1727974243598,0.02900998,60273.0,60272.0,0.000816]
[1727974244053,0.03300998,60273.0,60272.0,0.24623]
[1727974244272,0.03300998,60273.0,60272.0,0.33713]
[1727974244729,0.02900998,60273.0,60272.0,0.33713]
[1727974244967,0.02600998,60273.0,60272.0,0.34213]
[1727974245207,0.001636,60276.0,60275.0,0.165906]
[1727974246638,0.001636,60276.0,60272.0,0.179216]
[1727974247082,0.001636,60276.0,60274.0,0.331818]
[1727974247310,0.001636,60276.0,60274.0,0.165907]
[1727974247550,0.002636,60276.0,60275.0,0.173906]
[1727974248066,0.165911,60273.0,60272.0,0.091716]
[1727974249293,0.191918,60273.0,60272.0,0.091716]
[1727974249735,0.191918,60273.0,60272.0,0.000816]
[1727974250193,0.165911,60273.0,60272.0,0.002816]
[1727974250924,0.165911,60273.0,60272.0,0.004816]
[1727974251389,0.2822078,60273.0,60272.0,0.000816]
[1727974251619,0.3832078,60273.0,60272.0,0.000816]
[1727974251873,0.3832078,60273.0,60272.0,0.003816]
[1727974252092,0.3832078,60273.0,60272.0,0.000816]
[1727974252318,0.3832078,60273.0,60272.0,0.001816]
[1727974252319,0.3902078,60273.0,60272.0,0.001816]
[1727974252790,0.173911,60273.0,60272.0,0.001816]
[1727974253274,0.19191976,60273.0,60272.0,0.000816]
[1727974253535,0.19691976,60273.0,60272.0,0.000816]
[1727974253754,0.19691976,60273.0,60272.0,0.001816]
[1727974253755,0.20591976,60273.0,60272.0,0.001816]
[1727974254218,0.28403764,60273.0,60272.0,0.000816]
[1727974254662,0.29003764,60273.0,60272.0,0.001816]
[1727974254907,0.20291976,60273.0,60272.0,0.001816]
[1727974255137,0.19791976,60273.0,60272.0,0.001816]
[1727974255377,0.19691976,60273.0,60272.0,0.000816]
[1727974255834,0.19191976,60273.0,60272.0,0.000816]
[1727974256097,0.20291976,60273.0,60272.0,0.001816]
[1727974261514,0.27931976,60273.0,60272.0,0.001816]
[1727974261755,0.32833249,60273.0,60272.0,0.001816]
[1727974262763,0.20291976,60273.0,60272.0,0.001816]
[1727974263211,0.03700876,60273.0,60272.0,0.001816]
[1727974263663,0.03700876,60273.0,60272.0,0.16773]
[1727974264421,0.03700876,60273.0,60272.0,0.16673]
[1727974264422,0.03100876,60273.0,60272.0,0.16673]
[1727974264692,0.03100876,60273.0,60272.0,0.16773]
[1727974264693,0.011,60273.0,60272.0,0.16773]
[1727974264938,0.011,60273.0,60272.0,0.001816]
[1727974264939,0.171911,60273.0,60272.0,0.001816]
[1727974265177,0.172911,60273.0,60272.0,0.011816]
[1727974265412,0.165911,60273.0,60272.0,0.000816]
[1727974265643,0.166911,60273.0,60272.0,0.000816]
[1727974266123,0.165911,60273.0,60272.0,0.000816]
[1727974266363,0.165911,60273.0,60272.0,0.004816]
[1727974266864,0.166911,60273.0,60272.0,0.012816]
[1727974267104,0.001,60273.0,60272.0,0.17873]
[1727974267345,0.02600723,60275.0,60274.0,0.165909]
[1727974267870,0.165911,60273.0,60272.0,0.006816]
[1727974268104,0.16591,60274.0,60272.0,0.002816]
[1727974268345,0.16591,60274.0,60272.0,0.000816]
[1727974268581,0.001,60273.0,60272.0,0.000816]
[1727974269086,0.001,60273.0,60272.0,0.41531514]
[1727974269325,0.001,60273.0,60272.0,0.16673]
[1727974269803,0.001636,60276.0,60272.0,0.16673]
[1727974269804,0.001636,60276.0,60275.0,0.165906]
[1727974270757,0.001636,60276.0,60275.0,0.259106]
[1727974270996,0.001636,60276.0,60275.0,0.49929271]
[1727974271469,0.003636,60276.0,60275.0,0.49929271]
[1727974271712,0.003636,60276.0,60275.0,0.336106]
[1727974271958,0.001636,60276.0,60275.0,0.1702]
[1727974272201,0.001636,60276.0,60275.0,0.336106]
[1727974272440,0.002636,60276.0,60275.0,0.1782]
[1727974272685,0.002636,60276.0,60275.0,0.344106]
[1727974272936,0.002636,60276.0,60275.0,0.1112]
[1727974272937,0.169539,60276.0,60275.0,0.1112]
[1727974273188,0.169539,60276.0,60275.0,0.1012]
[1727974273427,0.004636,60276.0,60275.0,0.275106]
[1727974273671,0.004636,60276.0,60275.0,0.267106]
[1727974273672,0.002636,60276.0,60275.0,0.267106]
[1727974274146,0.001636,60276.0,60275.0,0.42229271]
[1727974274381,0.002636,60276.0,60275.0,0.50659271]
[1727974274621,0.001636,60281.0,60280.0,0.165892]
[1727974274864,0.001636,60281.0,60280.0,0.45167187]
[1727974275108,0.001636,60281.0,60280.0,0.61485858]
[1727974275337,0.001636,60281.0,60280.0,0.70675858]
[1727974275868,0.24858514,60294.0,60284.0,0.331758]
[1727974276112,0.24858514,60294.0,60293.0,0.54583587]
[1727974276398,0.24858514,60308.0,60299.0,0.16584]
[1727974276601,0.24858514,60308.0,60299.0,0.61480658]
[1727974277330,0.24858514,60308.0,60307.0,0.165818]
[1727974277565,0.24858514,60315.0,60299.0,0.54316658]
[1727974277798,0.24858514,60315.0,60305.0,0.28577987]
[1727974278027,0.1658,60314.0,60310.0,0.165809]
[1727974278269,0.24858514,60314.0,60306.0,0.16318671]
[1727974278509,0.000818,60326.0,60311.0,0.165806]
[1727974278510,0.331591,60316.0,60311.0,0.165806]
[1727974278739,0.165795,60316.0,60310.0,0.331616]
[1727974278978,0.1658,60314.0,60311.0,0.165806]
[1727974279221,0.3575804,60316.0,60308.0,0.165813]
[1727974279462,0.165805,60312.0,60306.0,0.16818671]
[1727974279700,0.0259894,60316.0,60311.0,0.002]
[1727974279948,0.165799,60314.0,60311.0,0.002]
[1727974280186,0.331556,60322.0,60311.0,0.002]
[1727974280441,0.24858514,60320.0,60314.0,0.165798]
[1727974280684,0.100818,60326.0,60311.0,0.002]
[1727974280930,0.000818,60326.0,60314.0,0.331597]
[1727974281168,0.165775,60323.0,60318.0,0.165786]
[1727974281404,0.000818,60326.0,60312.0,0.097]
[1727974281405,0.331554,60322.0,60312.0,0.097]
[1727974281639,0.331574,60319.0,60313.0,0.24858514]
[1727974281900,0.165785,60319.0,60315.0,0.165796]
[1727974282133,0.165782,60320.0,60316.0,0.165793]
[1727974282604,0.000818,60326.0,60316.0,0.16318671]
[1727974282858,0.002,60319.0,60318.0,0.165787]
[1727974283100,0.002,60319.0,60318.0,0.66054771]
[1727974283362,0.003,60319.0,60318.0,0.66054771]
[1727974283603,0.003,60319.0,60316.0,0.61736587]
[1727974283604,0.002,60319.0,60316.0,0.165792]
[1727974283848,0.002,60319.0,60316.0,0.001]
[1727974284086,0.02598503,60325.0,60315.0,0.331588]
[1727974284087,0.165774,60323.0,60318.0,0.165787]
[1727974284332,0.35752203,60325.0,60324.0,0.165771]
[1727974284333,0.02598503,60325.0,60324.0,0.165771]
[1727974284570,0.02598503,60325.0,60324.0,0.256671]
[1727974284816,0.008818,60326.0,60325.0,0.188768]
[1727974285053,0.008818,60326.0,60325.0,0.45195471]
[1727974285537,0.008,60326.0,60325.0,0.45195471]
[1727974285770,0.41430514,60343.0,60335.0,0.165741]
[1727974286003,0.41430514,60343.0,60331.0,0.61728387]
[1727974286004,0.24858514,60343.0,60331.0,0.61728387]
[1727974286236,0.58002714,60343.0,60333.0,0.165745]
[1727974286467,0.58002714,60343.0,60333.0,0.16318671]
[1727974286697,0.165728,60340.0,60333.0,0.16318671]
[1727974286949,0.331454,60341.0,60333.0,0.16318671]
[1727974287190,0.331454,60341.0,60331.0,0.165751]
[1727974287191,0.001,60336.0,60331.0,0.006]
[1727974287427,0.001,60336.0,60331.0,0.16918671]
[1727974287886,0.001,60336.0,60331.0,0.33493771]
[1727974288363,0.16573,60339.0,60332.0,0.165749]
[1727974288618,0.60600457,60343.0,60332.0,0.16318671]
[1727974288853,0.165726,60341.0,60335.0,0.16574]
[1727974289081,0.02598043,60343.0,60331.0,0.29077987]
[1727974289325,0.001,60336.0,60335.0,0.16574]
[1727974289670,0.001,60336.0,60334.0,0.165743]
[1727974289760,0.001,60336.0,60332.0,0.49468371]
[1727974289985,0.001,60336.0,60335.0,0.165741]
[1727974290238,0.001636,60342.0,60336.0,0.165738]
[1727974290478,0.001636,60342.0,60336.0,0.32892471]
[1727974290958,0.165726,60341.0,60336.0,0.32892471]
[1727974291205,0.165725,60341.0,60336.0,0.32892471]
[1727974291463,0.331458,60340.0,60336.0,0.16318671]
[1727974291986,0.165733,60338.0,60336.0,0.16318671]
[1727974292255,0.168371,60337.0,60336.0,0.16318671]
[1727974292505,0.001636,60337.0,60336.0,0.16318671]
[1727974292754,0.001636,60337.0,60336.0,0.003]
[1727974293008,0.167371,60337.0,60336.0,0.001]
[1727974293249,0.167371,60337.0,60336.0,0.002]
[1727974293468,0.001636,60337.0,60336.0,0.001]
[1727974293742,0.001636,60337.0,60336.0,0.42752471]
[1727974294270,0.001636,60337.0,60336.0,0.42652471]
[1727974294523,0.001636,60337.0,60336.0,0.62892471]
[1727974294749,0.001636,60342.0,60341.0,0.47450387]
[1727974294982,0.001636,60342.0,60341.0,0.63769058]
[1727974296237,0.002636,60342.0,60341.0,0.009]
[1727974296484,0.002636,60342.0,60341.0,0.174724]
[1727974296717,0.003636,60342.0,60341.0,0.02]
[1727974296955,0.003636,60342.0,60341.0,0.185724]
[1727974297241,0.003636,60342.0,60341.0,0.63469058]
[1727974297454,0.003636,60342.0,60341.0,0.34891071]
[1727974297923,0.002636,60342.0,60341.0,0.17418671]
[1727974298165,0.002636,60342.0,60341.0,0.32891071]
[1727974298166,0.001636,60342.0,60341.0,0.32891071]
[1727974298405,0.006636,60342.0,60337.0,0.331468]
[1727974298631,0.006636,60342.0,60336.0,0.0956]
[1727974298878,0.165735,60337.0,60336.0,0.0956]
[1727974299118,0.165731,60339.0,60336.0,0.0956]
[1727974299350,0.165735,60337.0,60336.0,0.0956]
[1727974299617,0.165733,60338.0,60337.0,0.007]
[1727974299871,0.165752,60331.0,60328.0,0.0935]
[1727974300105,0.331503,60332.0,60328.0,0.25668671]
[1727974300360,0.24858514,60337.0,60328.0,0.0935]
[1727974300605,0.165757,60329.0,60328.0,0.0935]
[1727974300894,0.24858514,60337.0,60323.0,0.241674]
[1727974300895,0.165764,60327.0,60323.0,0.241674]
[1727974301130,0.165764,60327.0,60325.0,0.24858514]
[1727974301365,0.24858514,60337.0,60324.0,0.16318671]
[1727974301612,0.41432014,60337.0,60336.0,0.006]
[1727974302091,0.331495,60333.0,60327.0,0.24858514]
[1727974302374,0.165766,60326.0,60325.0,0.25358514]
[1727974302605,0.331467,60338.0,60323.0,0.004]
[1727974302606,0.165771,60324.0,60323.0,0.004]
[1727974302849,0.165769,60325.0,60318.0,0.24858514]
[1727974303085,0.165769,60325.0,60313.0,0.00672545]
[1727974303086,0.165801,60313.0,60312.0,0.24858514]
[1727974303318,0.0796,60329.0,60327.0,0.001]
[1727974303556,0.41434514,60328.0,60327.0,0.001]
[1727974303798,0.16576,60328.0,60327.0,0.001]
[1727974304035,0.0259872,60329.0,60327.0,0.001]
[1727974304785,0.0259872,60329.0,60326.0,0.165764]
[1727974305036,0.0259872,60329.0,60325.0,0.331536]
[1727974305280,0.0259872,60329.0,60325.0,0.165766]
[1727974305519,0.0259872,60329.0,60326.0,0.165765]
[1727974305520,0.0309872,60329.0,60326.0,0.165765]
[1727974305760,0.1997452,60329.0,60322.0,0.023]
[1727974306000,0.1997452,60329.0,60319.0,0.24858514]
[1727974306001,0.0259872,60329.0,60325.0,0.165766]